bitfinex/quotes_SOLUSD_20240808
["timestamp","ask_amount","ask_price","bid_price","bid_amount"]
[1723095719051,6.5165,153.46,153.35,22.3551]
[1723095719252,1.30216631,153.45,153.35,22.3551]
[1723095719648,20.0,153.45,153.35,22.3551]
[1723095719868,1.30216631,153.44,153.35,22.3551]
[1723095720169,21.30216631,153.44,153.35,22.3551]
[1723095720555,20.0,153.44,153.35,22.3551]
[1723095720971,20.0,153.46,153.35,22.3551]
[1723095721278,45.0,153.45,153.35,22.3551]
[1723095721477,20.0,153.44,153.35,22.3551]
[1723095721774,36.76,153.54,153.36,1.30379559]
[1723095722081,6.5157,153.48,153.36,0.17]
[1723095722374,6.5157,153.48,153.36,0.34]
[1723095722876,0.17,153.47,153.36,0.34]
[1723095723061,45.34,153.47,153.36,0.34]
[1723095723678,20.0,153.46,153.36,0.34]
[1723095724176,20.0,153.47,153.36,0.34]
[1723095724474,45.0,153.46,153.36,0.34]
[1723095724685,20.0,153.47,153.36,1.64368374]
[1723095724856,395.6138,153.52,153.37,22.7255]
[1723095725175,1.47216631,153.51,153.37,22.7255]
[1723095725349,6.5164,153.46,153.37,22.7255]
[1723095725550,1.30216631,153.45,153.37,22.7255]
[1723095725769,1.30216631,153.5,153.37,22.7255]
[1723095725966,0.34,153.49,153.37,22.7255]
[1723095726146,6.5151,153.49,153.37,22.7255]
[1723095726368,65.34,153.48,153.37,22.7255]
[1723095726674,20.0,153.47,153.38,1.30361542]
[1723095727385,0.17,153.5,153.38,1.30361542]
[1723095727671,65.34,153.51,153.38,1.30361542]
[1723095727977,65.34,153.51,153.39,21.9767]
[1723095728151,20.34,153.51,153.4,1.30337506]
[1723095728553,20.0,153.52,153.41,22.0329]
[1723095729679,20.0,153.52,153.42,28.59]
[1723095730787,28.59,153.54,153.42,29.89323972]
[1723095731083,424.2022,153.56,153.44,50.163]
[1723095731289,35.1022,153.56,153.45,1.47296753]
[1723095731660,6.5125,153.55,153.44,50.163]
[1723095732262,65.0,153.54,153.45,1.30228823]
[1723095732584,20.0,153.54,153.45,22.862]
[1723095732794,9.95244486,153.58,153.46,28.59]
[1723095733086,20.0,153.57,153.46,28.76]
[1723095733253,26.5117,153.57,153.46,28.76]
[1723095734161,45.0,153.56,153.46,28.76]
[1723095734467,20.0,153.55,153.46,28.76]
[1723095734667,20.0,153.55,153.45,23.032]
[1723095734668,20.0,153.55,153.45,22.862]
[1723095734877,45.17,153.54,153.45,22.862]
[1723095735083,20.0,153.53,153.45,22.862]
[1723095737997,28.76,153.52,153.45,22.862]
[1723095738194,28.59,153.5,153.45,22.862]
[1723095738482,20.0,153.49,153.45,22.862]
[1723095739293,20.0,153.51,153.45,22.862]
[1723095739871,0.17,153.5,153.45,22.862]
[1723095740066,45.0,153.5,153.45,22.862]
[1723095740281,28.76,153.52,153.45,22.862]
[1723095740282,20.0,153.49,153.45,22.862]
[1723095740694,20.0,153.53,153.46,1.30287193]
[1723095740984,20.0,153.53,153.45,22.862]
[1723095741370,32.0959336,153.58,153.46,29.89210789]
[1723095741570,32.0959336,153.58,153.46,30.06210789]
[1723095741773,38.6071336,153.58,153.46,30.06210789]
[1723095742784,26.5117,153.57,153.46,30.06210789]
[1723095742975,26.5117,153.57,153.46,28.76]
[1723095744199,28.59,153.56,153.46,0.17]
[1723095744379,26.8526,153.55,153.45,22.862]
[1723095744671,6.5137,153.53,153.45,22.862]
[1723095744866,20.0,153.52,153.45,22.862]
[1723095745080,51.5146,153.51,153.45,22.862]
[1723095745280,20.0,153.5,153.45,22.862]
[1723095747380,20.0,153.51,153.45,22.862]
[1723095748696,20.0,153.53,153.45,22.862]
[1723095748997,26.5137,153.53,153.45,22.862]
[1723095749299,45.17,153.52,153.45,22.862]
[1723095749477,21.30216631,153.51,153.45,22.862]
[1723095749675,26.5142,153.51,153.45,22.862]
[1723095750086,1.30216631,153.5,153.45,22.862]
[1723095750288,20.0,153.51,153.45,22.862]
[1723095750994,389.1,153.57,153.46,0.39178098]
[1723095750995,28.59,153.56,153.46,0.39178098]
[1723095751193,391.79454726,153.57,153.46,29.89287745]
[1723095751991,398.30634726,153.57,153.46,29.89287745]
[1723095752377,398.30634726,153.57,153.46,28.59]
[1723095752572,398.30634726,153.57,153.46,29.89285682]
[1723095752772,45.0,153.56,153.46,29.89285682]
[1723095753187,20.0,153.55,153.46,29.89285682]
[1723095753601,20.0,153.55,153.47,0.17]
[1723095753901,20.0,153.56,153.47,0.17]
[1723095754309,0.8228107,153.58,153.49,6.093]
[1723095754613,0.8228107,153.58,153.52,28.59]
[1723095756901,0.8228107,153.58,153.51,15.3911]
[1723095757802,0.8228107,153.58,153.52,1.47230741]
[1723095758102,0.8228107,153.58,153.51,15.3911]
[1723095759180,0.8228107,153.58,153.52,1.30254127]
[1723095759383,0.8228107,153.58,153.53,6.188]
[1723095759586,123.23322579,153.71,153.56,34.778]
[1723095759587,268.0937173,153.68,153.56,34.778]
[1723095759884,70.70392579,153.71,153.62,34.778]
[1723095760075,70.70392579,153.71,153.63,1.30132248]
[1723095760278,70.70392579,153.71,153.64,28.76]
[1723095761316,70.70392579,153.71,153.64,28.59]
[1723095761479,70.70392579,153.71,153.66,44.3308]
[1723095761685,70.70392579,153.71,153.66,15.7408]
[1723095763709,70.70392579,153.71,153.68,6.2869]
[1723095763896,70.70392579,153.71,153.69,1.30112936]
[1723095764412,70.70392579,153.71,153.68,6.2869]
[1723095767092,6.5063,153.7,153.64,6.6417]
[1723095767296,65.0,153.7,153.64,6.6417]
[1723095767536,20.0,153.7,153.64,6.6417]
[1723095768020,45.0,153.69,153.64,6.6417]
[1723095768393,20.0,153.7,153.64,6.6417]
[1723095770684,70.70392579,153.71,153.65,1.30087746]
[1723095770890,70.70392579,153.71,153.64,6.6417]
[1723095771090,70.70392579,153.71,153.65,0.34]
[1723095771314,70.70392579,153.71,153.64,6.6417]
[1723095772027,70.70392579,153.71,153.65,1.30036077]
[1723095772231,70.70392579,153.71,153.64,6.6417]
[1723095773397,70.70392579,153.71,153.65,1.30132798]
[1723095773598,70.70392579,153.71,153.64,6.6417]
[1723095774127,1.30216631,153.7,153.64,6.6417]
[1723095774306,70.70392579,153.71,153.64,6.6417]
[1723095778410,70.70392579,153.71,153.65,0.17]
[1723095778613,70.70392579,153.71,153.66,15.5496]
[1723095778801,70.70392579,153.71,153.67,1.47114893]
[1723095778999,54.03732579,153.71,153.69,6.3381]
[1723095779204,20.70412579,153.71,153.7,6.3933]
[1723095779430,7.98422579,153.71,153.7,0.34]
[1723095779727,7.98422579,153.71,153.69,6.3381]
[1723095779906,7.98422579,153.71,153.7,0.34]
[1723095780919,7.98422579,153.71,153.7,45.34]
[1723095781114,1.31762579,153.71,153.7,81.97]
[1723095781324,0.8228107,153.73,153.71,2.877]
[1723095781533,0.8228107,153.73,153.72,1.64034649]
[1723095781734,0.8228107,153.73,153.72,46.64034649]
[1723095782326,0.8228107,153.73,153.72,45.34]
[1723095783336,0.8228107,153.73,153.72,0.34]
[1723095783514,0.8228107,153.73,153.72,0.17]
[1723095783710,0.8228107,153.73,153.72,45.17]
[1723095784017,0.8228107,153.73,153.72,0.17]
[1723095784629,0.8228107,153.73,153.71,2.877]
[1723095784935,0.8228107,153.73,153.67,6.0683]
[1723095786833,0.8228107,153.73,153.68,1.47106059]
[1723095787215,0.8228107,153.73,153.68,0.17]
[1723095787412,0.8228107,153.73,153.68,0.34]
[1723095787926,0.8228107,153.73,153.67,6.0683]
[1723095788131,0.8228107,153.73,153.63,44.19476555]
[1723095788335,0.8228107,153.73,153.64,45.34]
[1723095788513,0.8228107,153.73,153.64,45.17]
[1723095788826,0.8228107,153.73,153.63,6.2636]
[1723095790012,0.8228107,153.73,153.64,1.3013194]
[1723095790315,0.8228107,153.73,153.65,1.30117698]
[1723095790530,0.8228107,153.73,153.66,36.63]
[1723095791140,0.8228107,153.73,153.63,42.8936]
[1723095791334,0.8228107,153.73,153.64,45.17]
[1723095791535,0.8228107,153.73,153.64,0.17]
[1723095791721,0.8228107,153.73,153.64,45.17]
[1723095792345,0.8228107,153.73,153.64,0.17]
[1723095792735,0.8228107,153.73,153.64,0.34]
[1723095793827,0.8228107,153.73,153.64,45.34]
[1723095794842,0.8228107,153.73,153.65,1.29930284]
[1723095795010,0.8228107,153.73,153.66,0.34]
[1723095795647,0.8228107,153.73,153.67,1.30093]
[1723095795822,0.8228107,153.73,153.68,0.34]
[1723095796022,0.8228107,153.73,153.69,0.17]
[1723095796221,0.8228107,153.73,153.68,0.17]
[1723095796428,0.8228107,153.73,153.67,0.17]
[1723095796840,0.8228107,153.73,153.67,1.47079906]
[1723095797045,0.8228107,153.73,153.68,0.17]
[1723095797246,0.8228107,153.73,153.68,1.47078904]
[1723095797417,0.8228107,153.73,153.69,0.17]
[1723095799136,0.8228107,153.73,153.69,0.9012974]
[1723095799313,0.8228107,153.73,153.7,0.17]
[1723095799648,0.8228107,153.73,153.7,46.47052189]
[1723095799815,0.8228107,153.73,153.71,0.17]
[1723095800422,0.8228107,153.73,153.71,1.47051714]
[1723095800612,0.8228107,153.73,153.72,0.17]
[1723095801219,0.8228107,153.73,153.72,81.8]
[1723095801432,0.8228107,153.73,153.72,81.97]
[1723095802543,0.8228107,153.73,153.72,0.17]
[1723095802945,0.8228107,153.73,153.69,36.63]
[1723095804442,0.8228107,153.73,153.7,0.17]
[1723095805121,0.8228107,153.73,153.7,1.47039341]
[1723095805651,0.8228107,153.73,153.71,0.17]
[1723095806523,0.8228107,153.73,153.7,0.34]
[1723095806933,0.8228107,153.73,153.7,0.7486595]
[1723095807134,0.8228107,153.73,153.7,45.7486595]
[1723095807568,0.8228107,153.73,153.7,45.34]
[1723095808427,0.8228107,153.73,153.69,36.63]
[1723095808630,15.9962,153.84,153.7,1.30055471]
[1723095808848,15.9962,153.84,153.73,36.63]
[1723095809053,15.9962,153.84,153.74,1.30020777]
[1723095809658,15.9962,153.84,153.73,36.63]
[1723095809974,15.9962,153.84,153.74,0.34]
[1723095810849,15.9962,153.84,153.77,36.63]
[1723095811081,15.9962,153.84,153.78,45.17]
[1723095811249,15.9962,153.84,153.79,0.17]
[1723095812750,15.9962,153.84,153.74,36.63]
[1723095813150,15.9962,153.84,153.75,1.30043253]
[1723095813373,15.9962,153.84,153.74,36.63]
[1723095814672,15.9962,153.84,153.75,0.34]
[1723095814850,15.9962,153.84,153.7,6.80126732]
[1723095815171,15.9962,153.84,153.66,6.6216]
[1723095815172,16.4489,153.81,153.66,43.2516]
[1723095815383,16.4489,153.81,153.67,1.30025931]
[1723095815574,16.4489,153.81,153.7,6.80465872]
[1723095815880,16.4489,153.81,153.68,1.3001747]
[1723095816056,16.4489,153.81,153.7,6.8046669]
[1723095816252,17.75106631,153.81,153.7,6.8046669]
[1723095816470,16.4489,153.81,153.7,6.8046669]
[1723095816786,46.30216631,153.8,153.7,6.8046669]
[1723095817156,46.30216631,153.8,153.66,36.63]
[1723095817352,21.7701,153.79,153.69,6.80493501]
[1723095817574,21.7701,153.79,153.66,36.63]
[1723095817761,21.7701,153.79,153.66,37.73940723]
[1723095817970,21.7701,153.79,153.69,6.80543905]
[1723095818281,23.07226631,153.79,153.66,36.63]
[1723095818467,23.07226631,153.79,153.69,6.8054172]
[1723095818777,23.07226631,153.79,153.66,36.63]
[1723095819078,23.07226631,153.79,153.69,6.80541335]
[1723095819252,21.7701,153.79,153.7,0.34]
[1723095819456,21.7701,153.79,153.71,0.17]
[1723095821959,21.7701,153.79,153.71,1.47065991]
[1723095822158,21.7701,153.79,153.72,0.17]
[1723095824462,21.7701,153.79,153.71,0.34]
[1723095825172,21.7701,153.79,153.71,45.34]
[1723095825374,21.7701,153.79,153.71,0.17]
[1723095825679,21.7701,153.79,153.71,1.38279768]
[1723095826687,21.7701,153.79,153.71,0.17]
[1723095826890,21.7701,153.79,153.71,45.34]
[1723095827388,21.7701,153.79,153.71,0.34]
[1723095828281,21.7701,153.79,153.67,43.43501172]
[1723095828483,15.4009,153.78,153.67,43.43501172]
[1723095828979,1.30216631,153.77,153.67,6.80501172]
[1723095829155,15.4009,153.78,153.67,6.80501172]
[1723095829561,15.4009,153.78,153.68,1.30106542]
[1723095829764,15.4009,153.78,153.67,6.80501172]
[1723095829969,15.4009,153.78,153.68,1.30085972]
[1723095830289,15.4009,153.78,153.67,43.43526841]
[1723095830470,15.4009,153.78,153.68,45.34]
[1723095830667,15.4009,153.78,153.68,0.34]
[1723095830867,15.4009,153.78,153.68,45.34]
[1723095831482,15.4009,153.78,153.67,43.43526841]
[1723095832089,21.835,153.77,153.67,6.80526841]
[1723095832792,21.835,153.77,153.68,0.17]
[1723095833088,21.835,153.77,153.68,1.47096116]
[1723095833284,21.835,153.77,153.69,0.17]
[1723095833492,21.835,153.77,153.68,0.34]
[1723095833666,15.0584,153.76,153.67,35.29526841]
[1723095833870,15.0584,153.76,153.68,1.30109042]
[1723095834660,15.0584,153.76,153.67,35.29526841]
[1723095834987,15.0584,153.76,153.69,28.49]
[1723095836077,15.0584,153.76,153.67,35.29526841]
[1723095836285,15.0584,153.76,153.68,0.17]
[1723095836967,15.0584,153.76,153.67,35.29526841]
[1723095837693,15.0584,153.76,153.67,28.49]
[1723095839184,15.0584,153.76,153.68,1.64101755]
[1723095839494,15.0584,153.76,153.67,28.49]
[1723095841595,15.0584,153.76,153.68,1.30117409]
[1723095841969,15.0584,153.76,153.67,28.66]
[1723095842180,15.0584,153.76,153.68,0.34]
[1723095842495,15.0584,153.76,153.67,28.49]
[1723095842707,15.0584,153.76,153.68,0.34]
[1723095843174,15.0584,153.76,153.68,0.17]
[1723095843378,15.0584,153.76,153.67,28.49]
[1723095843677,15.0584,153.76,153.66,6.80711809]
[1723095843678,15.8713,153.73,153.66,6.80711809]
[1723095843876,15.8713,153.73,153.59,2.43471479]
[1723095843877,15.8713,153.7,153.62,28.49]
[1723095845202,15.8713,153.7,153.6,6.80960658]
[1723095845203,15.8713,153.7,153.64,28.49]
[1723095845494,15.8713,153.7,153.65,1.30140929]
[1723095845903,15.8713,153.7,153.64,28.49]
[1723095847970,15.8713,153.7,153.61,29.79159955]
[1723095848368,15.8713,153.7,153.61,28.49]
[1723095848594,45.0,153.69,153.59,28.49]
[1723095848792,15.8713,153.7,153.6,1.30171076]
[1723095848978,15.8713,153.7,153.55,5.23466465]
[1723095848979,15.8713,153.7,153.61,29.79162601]
[1723095849177,45.0,153.69,153.61,29.79162601]
[1723095849790,45.0,153.69,153.61,28.49]
[1723095849982,45.0,153.69,153.59,28.49]
[1723095850195,6.0864,153.67,153.59,28.49]
[1723095850792,6.0864,153.67,153.6,1.3013618]
[1723095851179,6.0864,153.67,153.59,28.49]
[1723095851378,6.0864,153.67,153.63,28.49]
[1723095851776,6.0864,153.67,153.61,28.49]
[1723095851981,6.0864,153.67,153.59,28.49]
[1723095852198,6.0864,153.67,153.6,0.34]
[1723095852616,15.9214,153.66,153.55,6.81127322]
[1723095852777,15.9214,153.66,153.57,28.49]
[1723095852972,15.9214,153.66,153.58,1.30123118]
[1723095853602,15.9214,153.66,153.59,28.49]
[1723095853774,15.9214,153.66,153.59,29.79097701]
[1723095854300,15.9214,153.66,153.6,0.17]
[1723095854508,15.9214,153.66,153.6,0.34]
[1723095857889,15.9214,153.66,153.61,28.49]
[1723095858093,15.9214,153.66,153.62,0.34]
[1723095858994,15.9214,153.66,153.61,28.49]
[1723095860092,15.9214,153.66,153.59,28.49]
[1723095860292,15.9214,153.66,153.6,0.17]
[1723095861413,15.9214,153.66,153.59,28.49]
[1723095866790,15.9214,153.66,153.6,0.17]
[1723095866992,15.9214,153.66,153.6,0.34]
[1723095869715,15.9214,153.66,153.59,28.49]
[1723095869900,15.9214,153.66,153.6,0.17]
[1723095870308,15.9214,153.66,153.6,0.34]
[1723095870518,15.9214,153.66,153.61,28.49]
[1723095871020,15.9214,153.66,153.62,0.17]
[1723095871224,15.9214,153.66,153.63,28.49]
[1723095871917,15.9214,153.66,153.65,19.54]
[1723095873702,15.9214,153.66,153.56,1.30117337]
[1723095873898,15.9214,153.66,153.61,28.51]
[1723095876817,15.9214,153.66,153.6,0.17]
[1723095877015,15.9214,153.66,153.6,0.34]
[1723095878608,15.9214,153.66,153.61,28.51]
[1723095878811,15.9214,153.66,153.62,0.34]
[1723095880431,15.9214,153.66,153.63,28.51]
[1723095880728,15.9214,153.66,153.64,0.34]
[1723095882327,15.9214,153.66,153.6,45.0]
[1723095882328,15.9214,153.66,153.61,28.51]
[1723095882515,15.9214,153.66,153.62,45.34]
[1723095882911,15.9214,153.66,153.62,0.34]
[1723095883137,15.9214,153.66,153.62,45.34]
[1723095884213,15.9214,153.66,153.63,28.51]
[1723095884410,15.9214,153.66,153.64,0.34]
[1723095886236,15.9214,153.66,153.63,28.51]
[1723095886534,15.9214,153.66,153.62,28.51]
[1723095886728,16.4976,153.7,153.64,28.51]
[1723095886927,16.4976,153.7,153.66,28.51]
[1723095887111,16.4976,153.7,153.67,1.30114488]
[1723095887511,16.4976,153.7,153.66,28.51]
[1723095887820,16.4976,153.7,153.68,28.51]
[1723095888022,16.4976,153.7,153.69,0.34]
[1723095888337,16.4976,153.7,153.69,0.17]
[1723095888523,16.4976,153.7,153.69,0.34]
[1723095889238,16.4976,153.7,153.69,0.17]
[1723095889412,16.4976,153.7,153.68,0.17]
[1723095889742,16.4976,153.7,153.67,45.34]
[1723095890539,16.4976,153.7,153.67,0.34]
[1723095890717,16.4976,153.7,153.67,0.17]
[1723095890910,16.4976,153.7,153.67,0.34]
[1723095891335,16.4976,153.7,153.67,46.64090744]
[1723095891829,16.4976,153.7,153.67,0.34]
[1723095893929,16.4976,153.7,153.66,28.51]
[1723095894239,16.4976,153.7,153.67,0.34]
[1723095894541,16.4976,153.7,153.67,0.17]
[1723095895349,16.4976,153.7,153.67,0.34]
[1723095895831,16.4976,153.7,153.68,19.54]
[1723095896231,16.4976,153.7,153.69,19.54]
[1723095897444,16.4976,153.7,153.69,19.71]
[1723095897628,16.11,153.74,153.69,19.88]
[1723095897835,16.11,153.74,153.71,19.54]
[1723095898334,16.11,153.74,153.7,19.54]
[1723095898742,16.11,153.74,153.71,19.54]
[1723095898918,16.11,153.74,153.7,19.54]
[1723095900330,16.11,153.74,153.72,19.54]
[1723095900530,16.11,153.74,153.73,1.05396832]
[1723095901653,16.11,153.74,153.72,19.54]
[1723095902348,16.11,153.74,153.69,0.34]
[1723095902560,16.11,153.74,153.71,19.54]
[1723095903549,16.11,153.74,153.72,19.54]
[1723095905125,649.2007,153.83,153.7,0.17]
[1723095905126,642.7,153.83,153.73,20.84087856]
[1723095905328,16.5512,153.77,153.76,19.54]
[1723095905740,16.5512,153.77,153.76,19.88]
[1723095906240,6.4642,153.83,153.76,84.42]
[1723095906443,6.4642,153.83,153.76,0.17]
[1723095906625,6.4642,153.83,153.78,19.54]
[1723095907240,6.4642,153.83,153.79,20.84024896]
[1723095907555,6.4642,153.83,153.79,19.54]
[1723095907854,6.4642,153.83,153.76,28.63]
[1723095908049,6.4642,153.83,153.77,1.64023697]
[1723095908558,6.4642,153.83,153.77,0.34]
[1723095909233,15.5052,153.82,153.77,0.34]
[1723095909430,15.5052,153.82,153.77,1.64021969]
[1723095909662,15.5052,153.82,153.77,0.34]
[1723095910180,15.5052,153.82,153.78,28.46]
[1723095910454,15.5052,153.82,153.8,28.46]
[1723095910660,15.5052,153.82,153.81,0.17]
[1723095910857,15.5052,153.82,153.79,0.17]
[1723095911150,15.5052,153.82,153.76,28.46]
[1723095911354,15.5052,153.82,153.77,45.34]
[1723095911555,15.5052,153.82,153.78,1.30021592]
[1723095911733,15.5052,153.82,153.79,0.34]
[1723095911934,15.5052,153.82,153.79,1.64018633]
[1723095912352,15.5052,153.82,153.79,0.34]
[1723095913055,22.2263,153.87,153.8,28.46]
[1723095913270,22.2263,153.87,153.81,45.34]
[1723095913554,22.2263,153.87,153.82,28.46]
[1723095913850,22.2263,153.87,153.83,0.34]
[1723095914361,22.2263,153.87,153.83,1.63978526]
[1723095914658,22.2263,153.87,153.63,46.05547875]
[1723095914958,22.2263,153.87,153.79,28.46]
[1723095915139,22.2263,153.87,153.81,28.46]
[1723095915340,22.2263,153.87,153.82,1.29981827]
[1723095915852,22.2263,153.87,153.81,28.46]
[1723095916061,22.2263,153.87,153.82,0.34]
[1723095916432,22.2263,153.87,153.81,28.46]
[1723095916433,22.2263,153.87,153.81,0.17]
[1723095916642,22.2263,153.87,153.8,45.34]
[1723095917364,22.2263,153.87,153.81,29.75977455]
[1723095917556,22.2263,153.87,153.79,28.46]
[1723095917739,23.52846631,153.87,153.77,28.46]
[1723095918061,22.2263,153.87,153.77,28.46]
[1723095918234,22.2263,153.87,153.78,1.30028843]
[1723095918740,22.2263,153.87,153.79,28.46]
[1723095919131,22.2263,153.87,153.76,28.46]
[1723095919931,22.2263,153.87,153.77,1.30008562]
[1723095920138,22.2263,153.87,153.78,28.46]
[1723095920445,15.5735,153.85,153.76,28.46]
[1723095920649,6.1799,153.84,153.74,28.46]
[1723095921548,16.4015,153.83,153.72,28.46]
[1723095921745,16.4015,153.8,153.67,6.53536796]
[1723095922044,16.4015,153.8,153.62,7.72599459]
[1723095922045,22.8435,153.78,153.69,28.46]
[1723095922251,1.30216631,153.77,153.69,28.46]
[1723095922676,1.30216631,153.77,153.63,5.23466465]
[1723095922677,1.30216631,153.76,153.67,28.46]
[1723095922843,22.8435,153.78,153.69,28.46]
[1723095923047,22.8435,153.78,153.73,28.46]
[1723095923348,22.8435,153.78,153.75,28.46]
[1723095924372,22.8435,153.78,153.76,0.34]
[1723095924958,22.5763,153.82,153.77,28.46]
[1723095925268,22.5763,153.82,153.76,1.64047782]
[1723095925269,16.4778,153.82,153.79,28.46]
[1723095925473,16.4778,153.82,153.8,0.34]
[1723095926145,16.4778,153.82,153.8,0.17]
[1723095926352,16.4778,153.82,153.8,0.34]
[1723095926776,16.4778,153.82,153.8,0.17]
[1723095927155,16.4778,153.82,153.8,0.34]
[1723095927654,16.4778,153.82,153.8,0.17]
[1723095927850,16.4778,153.82,153.8,0.34]
[1723095928077,22.4286,153.86,153.8,0.34]
[1723095930494,22.4286,153.86,153.8,1.63997956]
[1723095930959,22.4286,153.86,153.82,28.46]
[1723095932863,16.3924,153.86,153.83,1.46954124]
[1723095933065,0.8228107,153.88,153.84,0.17]
[1723095933678,0.8228107,153.88,153.83,0.34]
[1723095934792,0.8228107,153.88,153.8,28.46]
[1723095935763,0.8228107,153.88,153.78,28.46]
[1723095936386,6.2977,153.86,153.76,28.46]
[1723095938095,17.32536631,153.85,153.74,28.46]
[1723095938306,45.0,153.84,153.74,28.46]
[1723095938678,1.30216631,153.83,153.74,28.46]
[1723095938893,45.0,153.84,153.74,28.46]
[1723095939499,23.68026631,153.83,153.74,28.46]
[1723095939798,45.0,153.82,153.72,28.46]
[1723095940699,15.7661,153.81,153.72,28.46]
[1723095940911,15.7661,153.81,153.77,28.46]
[1723095941886,15.7661,153.81,153.78,0.17]
[1723095942207,15.7661,153.81,153.77,28.46]
[1723095942777,15.7661,153.81,153.78,0.17]
[1723095943003,15.7661,153.81,153.77,28.46]
[1723095943582,15.7661,153.81,153.78,0.17]
[1723095943879,15.7661,153.81,153.77,28.46]
[1723095944076,6.1053,153.83,153.77,28.46]
[1723095944277,6.0899,153.86,153.81,28.46]
[1723095944677,6.0899,153.86,153.79,28.46]
[1723095944900,6.0899,153.86,153.77,28.46]
[1723095945279,6.0899,153.86,153.78,0.17]
[1723095945576,16.1511,153.85,153.78,0.17]
[1723095945776,16.1511,153.85,153.77,28.46]
[1723095946190,16.1511,153.85,153.77,29.76030927]
[1723095946377,16.1511,153.85,153.77,28.46]
[1723095946883,16.1511,153.85,153.76,1.64026721]
[1723095947081,16.1511,153.85,153.78,28.46]
[1723095947490,16.1511,153.85,153.76,28.46]
[1723095947677,15.52,153.83,153.74,28.46]
[1723095948075,15.52,153.83,153.75,1.30040294]
[1723095948510,15.52,153.83,153.71,6.80423016]
[1723095948511,6.2433,153.82,153.71,6.80423016]
[1723095948707,22.2895,153.78,153.71,6.80423016]
[1723095948888,22.2895,153.78,153.62,9.3061]
[1723095948889,17.51836631,153.77,153.67,28.46]
[1723095949086,16.0462,153.74,153.67,28.46]
[1723095949410,16.0462,153.74,153.65,28.46]
[1723095949605,45.0,153.73,153.63,28.46]
[1723095949818,22.2429,153.72,153.63,28.46]
[1723095950020,45.17,153.71,153.63,28.46]
[1723095950188,45.17,153.71,153.61,28.46]
[1723095950597,45.0,153.71,153.61,28.46]
[1723095950789,22.2429,153.72,153.63,28.46]
[1723095951612,22.2429,153.72,153.69,28.46]
[1723095951917,22.2429,153.72,153.58,6.80878347]
[1723095951918,16.055,153.72,153.71,28.46]
[1723095952090,22.5709,153.76,153.71,28.8]
[1723095952405,22.5709,153.76,153.73,28.46]
[1723095953409,15.9816,153.76,153.75,28.46]
[1723095955698,15.9816,153.76,153.72,0.17]
[1723095956008,6.2018,153.8,153.72,0.17]
[1723095956009,6.2018,153.8,153.72,46.64064922]
[1723095957602,6.2018,153.8,153.72,45.34]
[1723095957798,6.2018,153.8,153.71,36.59]
[1723095957799,6.2018,153.8,153.68,39.17859819]
[1723095958093,6.2018,153.8,153.69,1.30077214]
[1723095958292,6.2018,153.8,153.68,37.89068696]
[1723095959313,6.2018,153.8,153.69,45.34]
[1723095960011,6.2018,153.8,153.7,1.30077085]
[1723095960191,6.2018,153.8,153.71,1.30068622]
[1723095960392,16.3631,153.72,153.62,6.80483977]
[1723095960592,24.4956432,153.72,153.56,36.59]